bitfinex/quotes_BTCUSD_20230114
["timestamp","ask_amount","ask_price","bid_price","bid_amount"]
[1673657867454,1.18482764,20958.0,20953.0,0.01492305]
[1673657867694,0.19072595,20957.0,20950.0,0.31152148]
[1673657867949,0.19072595,20956.0,20951.0,0.3238709]
[1673657868193,0.2,20959.0,20952.0,0.17727012]
[1673657868450,0.4588224,20959.0,20954.0,0.28348409]
[1673657868690,0.11708,20960.0,20955.0,0.17727012]
[1673657868933,2.21279917,20965.0,20956.0,0.17727012]
[1673657868934,1.6364,20965.0,20956.0,0.17727012]
[1673657869232,0.36147824,20959.0,20957.0,0.17727012]
[1673657869479,0.49650286,20963.0,20957.0,0.01492305]
[1673657869724,0.47720169,20958.0,20957.0,0.17727012]
[1673657869979,0.47720169,20958.0,20954.0,0.3213878]
[1673657869980,0.1386287,20958.0,20954.0,0.3213878]
[1673657870229,0.5169,20959.0,20955.0,0.01492305]
[1673657870516,0.11729,20961.0,20957.0,0.01492305]
[1673657870756,0.30735477,20960.0,20957.0,0.19219317]
[1673657870998,0.2,20959.0,20957.0,0.19219317]
[1673657871251,0.5169,20959.0,20957.0,0.01492305]
[1673657871489,0.5169,20960.0,20949.0,0.26729]
[1673657871737,0.5169,20958.0,20953.0,0.01492305]
[1673657871980,0.5169,20956.0,20949.0,0.15]
[1673657872223,0.5169,20954.0,20949.0,0.15]
[1673657872466,1.04684106,20955.0,20946.0,0.01649379]
[1673657872467,0.5169,20952.0,20946.0,0.01649379]
[1673657872715,0.59463169,20955.0,20944.0,0.46319795]
[1673657872716,0.5069,20950.0,20944.0,0.46319795]
[1673657872959,0.5069,20948.0,20945.0,0.00966721]
[1673657873211,0.5069,20947.0,20945.0,0.34696631]
[1673657873466,0.19072595,20948.0,20945.0,0.01649379]
[1673657873467,0.04174052,20948.0,20945.0,0.01649379]
[1673657873714,0.04174052,20948.0,20946.0,1.11547509]
[1673657873954,0.8344,20951.0,20947.0,0.27923984]
[1673657873955,0.6344,20951.0,20947.0,0.27923984]
[1673657874188,0.46545158,20953.0,20948.0,0.53562514]
[1673657874189,0.5169,20949.0,20948.0,0.53562514]
[1673657874429,0.14260624,20949.0,20948.0,0.01649379]
[1673657874671,0.14317926,20949.0,20948.0,0.01587879]
[1673657874924,0.14317926,20949.0,20948.0,0.05090879]
[1673657875157,0.14317926,20952.0,20948.0,0.38268125]
[1673657875408,0.45825378,20952.0,20948.0,0.52421346]
[1673657875665,0.5169,20950.0,20949.0,0.01649379]
[1673657875906,0.14317926,20950.0,20949.0,0.05152379]
[1673657876154,0.14317926,20950.0,20949.0,0.35152379]
[1673657876449,0.14317926,20953.0,20949.0,1.1228808]
[1673657876702,0.5169,20955.0,20950.0,0.19072595]
[1673657876944,0.5169,20955.0,20951.0,0.19072595]
[1673657876945,0.259371,20954.0,20951.0,0.19072595]
[1673657877188,0.34890745,20955.0,20951.0,0.20721974]
[1673657877460,0.34390745,20955.0,20952.0,0.3]
[1673657877696,0.5169,20955.0,20952.0,0.50721974]
[1673657877947,0.5169,20955.0,20953.0,0.31947487]
[1673657878183,0.28684406,20957.0,20953.0,0.33746212]
[1673657878421,0.30580077,20958.0,20954.0,0.3]
[1673657878708,0.5169,20960.0,20954.0,0.19072595]
[1673657878951,0.2,20961.0,20955.0,0.19072595]
[1673657879192,0.35808739,20961.0,20956.0,0.39072595]
[1673657879435,0.30744852,20960.0,20958.0,0.477142]
[1673657879678,0.12011,20963.0,20958.0,0.477142]
[1673657879920,0.2,20958.0,20953.0,0.477258]
[1673657880175,0.87196354,20957.0,20953.0,0.477258]
[1673657880420,0.5169,20955.0,20952.0,0.477268]
[1673657880666,0.5169,20953.0,20952.0,0.477268]
[1673657880905,0.71388623,20953.0,20952.0,0.477268]
[1673657881150,0.78527485,20953.0,20950.0,0.49529325]
[1673657881394,0.5169,20952.0,20949.0,0.28473186]
[1673657881639,0.56881456,20952.0,20951.0,0.82786632]
[1673657881886,0.56881456,20952.0,20951.0,0.19072595]
[1673657881887,0.14069308,20952.0,20951.0,0.19072595]
[1673657882135,0.01396664,20967.0,20952.0,0.15635712]
[1673657882388,0.5169,20965.0,20954.0,0.19072595]
[1673657882644,0.01396664,20967.0,20957.0,1.908612]
[1673657882892,0.01396664,20967.0,20958.0,1.0506294]
[1673657883189,0.01396664,20967.0,20961.0,1.908274]
[1673657883437,0.52911625,20966.0,20962.0,0.3]
[1673657883684,0.5169,20965.0,20962.0,0.75896063]
[1673657883935,0.01396664,20967.0,20962.0,0.66776395]
[1673657884182,0.01396664,20967.0,20963.0,0.01798725]
[1673657884433,0.01396664,20967.0,20964.0,0.954006]
[1673657884935,0.01396664,20967.0,20966.0,1.153924]
[1673657885175,0.15357269,20967.0,20966.0,2.01292141]
[1673657885416,0.95272796,20967.0,20966.0,0.476962]
[1673657885664,0.5169,20966.0,20964.0,0.75539509]
[1673657885913,0.5827812,20967.0,20965.0,0.85310023]
[1673657886162,0.01396664,20967.0,20966.0,0.52997925]
[1673657886412,0.24314854,20967.0,20966.0,1.38307948]
[1673657886652,0.23314854,20967.0,20966.0,1.38307948]
[1673657886899,0.23314854,20967.0,20966.0,1.86509223]
[1673657887394,0.01440257,20968.0,20967.0,0.23524917]
[1673657887639,0.01440257,20968.0,20967.0,1.8652884]
[1673657888157,0.01440257,20968.0,20967.0,1.88335789]
[1673657888403,0.01440257,20968.0,20967.0,2.31153026]
[1673657888651,0.01440257,20968.0,20967.0,2.01117395]
[1673657888890,0.01376453,20973.0,20967.0,2.01117395]
[1673657888891,0.01376453,20973.0,20968.0,0.2]
[1673657889146,0.58257909,20973.0,20969.0,1.80686623]
[1673657889455,0.58257909,20973.0,20970.0,0.85310023]
[1673657889456,0.5169,20971.0,20970.0,0.85310023]
[1673657889703,0.22547541,20971.0,20970.0,1.34382618]
[1673657889961,0.01376453,20973.0,20970.0,2.32648026]
[1673657890225,0.01376453,20973.0,20971.0,1.15310023]
[1673657890471,0.01376453,20973.0,20972.0,1.80675223]
[1673657890718,1.28244102,20973.0,20972.0,0.85310023]
[1673657890963,1.28244102,20973.0,20968.0,0.9812717]
[1673657890964,0.5169,20971.0,20968.0,0.9562717]
[1673657891230,0.53066453,20973.0,20970.0,0.476865]
[1673657891467,0.5169,20971.0,20967.0,0.03524917]
[1673657891712,0.7169,20968.0,20967.0,0.03524917]
[1673657891957,0.9354448,20968.0,20967.0,0.03524917]
[1673657892467,1.18699037,20968.0,20967.0,0.03524917]
[1673657892715,1.5354448,20968.0,20961.0,0.13160112]
[1673657892960,1.5354448,20968.0,20959.0,0.13160112]
[1673657892961,0.5169,20964.0,20959.0,0.13160112]
[1673657893222,0.72887056,20967.0,20959.0,0.29893078]
[1673657893223,0.5169,20962.0,20959.0,0.29893078]
[1673657893468,0.56881456,20961.0,20960.0,0.01963803]
[1673657893713,1.59745412,20961.0,20956.0,0.220566]
[1673657893963,1.59745412,20961.0,20952.0,0.15635712]
[1673657893964,0.5169,20956.0,20952.0,0.15635712]
[1673657894210,0.47720169,20957.0,20952.0,0.15635712]
[1673657894211,0.5169,20954.0,20952.0,0.15635712]
[1673657894465,0.2,20955.0,20952.0,0.02677212]
[1673657894466,0.5169,20953.0,20952.0,0.02677212]
[1673657894709,0.74070203,20953.0,20952.0,0.06004692]
[1673657894951,0.67045185,20955.0,20953.0,0.05168999]
[1673657895194,0.5169,20961.0,20953.0,1.35893828]
[1673657895438,0.11969881,20960.0,20954.0,0.19072595]
[1673657895681,0.11969881,20960.0,20955.0,1.14511395]
[1673657895944,0.11969881,20960.0,20956.0,0.69072595]
[1673657896198,0.5169,20962.0,20956.0,0.96789695]
[1673657896481,0.5169,20961.0,20956.0,0.51036398]
[1673657896757,0.5169,20961.0,20957.0,0.01963803]
[1673657896758,1.05101625,20961.0,20957.0,0.01963803]
[1673657896986,0.28852027,20961.0,20954.0,0.27170023]
[1673657897230,0.05691456,20960.0,20957.0,0.01963803]
[1673657897475,0.59964272,20961.0,20957.0,0.34544003]
[1673657897723,0.2,20963.0,20957.0,0.19072595]
[1673657897984,0.53411625,20962.0,20955.0,0.01963803]
[1673657898256,0.5169,20958.0,20953.0,0.05168999]
[1673657898500,0.994054,20958.0,20953.0,0.05168999]
[1673657898759,0.994054,20958.0,20945.0,0.93899486]
[1673657898760,0.2,20953.0,20945.0,0.33584044]
[1673657899002,0.2,20953.0,20945.0,0.00669442]
[1673657899003,1.42074803,20952.0,20945.0,0.00669442]
[1673657899304,0.5169,20950.0,20946.0,0.01963803]
[1673657899505,0.5169,20948.0,20946.0,0.01963803]
[1673657899759,0.57381456,20947.0,20946.0,0.01963803]
[1673657900042,0.57381456,20947.0,20945.0,0.00669442]
[1673657900043,0.44734757,20945.0,20943.0,0.32914602]
[1673657900258,0.44734757,20945.0,20941.0,0.92658529]
[1673657900758,0.44734757,20943.0,20941.0,0.92629116]
[1673657901014,0.28852027,20951.0,20942.0,0.01963803]
[1673657901259,0.12228444,20952.0,20943.0,0.19072595]
[1673657901260,0.53411625,20950.0,20943.0,0.19072595]
[1673657901510,0.47720169,20948.0,20946.0,0.00663482]
[1673657901805,0.47720169,20947.0,20946.0,0.00663482]
[1673657902029,1.21939496,20947.0,20946.0,0.00663482]
[1673657902277,1.21636917,20947.0,20946.0,0.00663482]
[1673657902524,1.21636917,20947.0,20946.0,3.482e-05]
[1673657902525,1.39523773,20947.0,20946.0,3.482e-05]
[1673657902765,0.5169,20945.0,20942.0,0.33960532]
[1673657903010,0.2,20946.0,20941.0,0.00658019]
[1673657903011,0.99410169,20943.0,20941.0,0.00658019]
[1673657903262,0.55101625,20943.0,20941.0,0.00658019]
[1673657903762,1.17130338,20942.0,20941.0,0.09679659]
[1673657904010,0.49410169,20940.0,20939.0,0.31461686]
[1673657904249,0.49410169,20938.0,20933.0,0.1315297]
[1673657904503,0.49410169,20936.0,20931.0,0.32889965]
[1673657904751,0.75101625,20935.0,20930.0,0.32889965]
[1673657904996,0.5169,20937.0,20935.0,0.02504558]
[1673657905507,0.2,20942.0,20936.0,0.01963803]
[1673657905771,0.2,20943.0,20937.0,0.66833095]
[1673657906016,0.2,20943.0,20938.0,0.19072595]
[1673657906017,0.5169,20942.0,20938.0,0.19072595]
[1673657906282,0.25718,20943.0,20939.0,0.19072595]
[1673657906283,0.19,20943.0,20939.0,0.19072595]
[1673657906524,0.19,20943.0,20940.0,0.19072595]
[1673657906797,0.19,20943.0,20941.0,0.19072595]
[1673657907010,0.7069,20943.0,20940.0,0.03927606]
[1673657907256,0.7069,20943.0,20937.0,0.477609]
[1673657907493,0.7069,20943.0,20938.0,0.79722903]
[1673657907736,0.7069,20943.0,20938.0,0.68795498]
[1673657907982,0.85051217,20943.0,20939.0,0.01963803]
[1673657908248,0.677412,20947.0,20940.0,0.9551]
[1673657908249,0.5169,20947.0,20940.0,0.9551]
[1673657908499,0.5169,20947.0,20941.0,0.49072595]
[1673657908742,0.5169,20947.0,20942.0,0.66822195]
[1673657908996,0.477245,20954.0,20943.0,0.49072595]
[1673657909238,0.5169,20950.0,20945.0,0.477424]
[1673657909501,0.5169,20950.0,20944.0,0.66817095]
[1673657909502,0.5169,20950.0,20946.0,0.19072595]
[1673657909750,0.37462394,20952.0,20947.0,0.19072595]
[1673657909986,0.37462394,20952.0,20948.0,0.19072595]
[1673657909987,0.23946914,20952.0,20948.0,0.19072595]
[1673657910230,0.5169,20952.0,20948.0,0.19072595]
[1673657910486,0.5169,20950.0,20948.0,0.19072595]
[1673657910753,0.5169,20950.0,20945.0,0.49707003]
[1673657910993,0.5169,20948.0,20945.0,0.49707003]
[1673657911236,0.60277033,20948.0,20944.0,0.477445]
[1673657911482,0.60277033,20948.0,20942.0,0.49713703]
[1673657911731,0.60277033,20948.0,20938.0,0.477593]
[1673657911732,0.5169,20946.0,20939.0,0.3257239]
[1673657911982,0.57462394,20947.0,20937.0,0.01963803]
[1673657911983,0.5169,20944.0,20937.0,0.01963803]
[1673657912229,2.42663469,20942.0,20935.0,0.02504558]
[1673657912486,0.5169,20940.0,20935.0,0.02504558]
[1673657912733,0.5169,20940.0,20927.0,0.00727905]
[1673657912734,0.5169,20935.0,20927.0,0.00727905]
[1673657912982,0.37300534,20934.0,20927.0,0.00727905]
[1673657913243,0.33707175,20937.0,20931.0,0.2815363]
[1673657913483,0.33707175,20937.0,20928.0,0.64274972]
[1673657913484,0.03370717,20936.0,20928.0,0.45096922]
[1673657913734,1.01437184,20938.0,20931.0,0.01963803]
[1673657913993,0.2,20938.0,20931.0,0.49739703]
[1673657914242,0.2,20940.0,20931.0,0.8390583]
[1673657914243,0.5169,20937.0,20931.0,0.8390583]
[1673657914483,0.5169,20937.0,20931.0,0.68812298]
[1673657914725,0.5169,20937.0,20931.0,0.66848495]
[1673657914988,0.5169,20935.0,20932.0,0.5224578]
[1673657915233,0.46521001,20935.0,20933.0,0.477703]
[1673657915508,0.5169,20937.0,20933.0,0.49496333]
[1673657915761,0.5169,20936.0,20934.0,0.01726033]
[1673657916006,0.36512631,20939.0,20935.0,1.63253769]
[1673657916255,0.41810403,20946.0,20936.0,0.19072595]
[1673657916500,0.66281,20943.0,20937.0,0.19072595]
[1673657916748,0.5169,20945.0,20939.0,0.955154]
[1673657916999,0.5169,20945.0,20940.0,0.19072595]
[1673657917258,0.5169,20945.0,20939.0,0.955154]
[1673657917259,0.7169,20942.0,20939.0,0.88715199]
[1673657917513,0.5169,20942.0,20939.0,0.90441232]
[1673657917747,0.70762595,20942.0,20936.0,0.15]
[1673657917989,0.5169,20940.0,20934.0,0.49494133]
[1673657918228,0.5169,20938.0,20934.0,0.49494133]
[1673657918486,0.5169,20936.0,20934.0,0.49494133]
[1673657918715,0.70762595,20936.0,20934.0,0.49494133]
[1673657918961,0.70762595,20935.0,20934.0,0.01726033]
[1673657919206,0.92706478,20935.0,20932.0,0.00714325]
[1673657919465,0.7169,20933.0,20932.0,0.00714325]
[1673657919694,1.03630219,20933.0,20932.0,0.00714325]
[1673657919938,1.10069518,20933.0,20932.0,0.00714325]
[1673657920204,1.29142113,20933.0,20932.0,0.00714325]
[1673657920448,0.2,20930.0,20927.0,0.00727905]
[1673657920713,0.61686336,20929.0,20927.0,0.00727905]
[1673657920953,0.42613741,20928.0,20927.0,0.00727905]
[1673657921201,0.50907039,20928.0,20927.0,0.00727905]
[1673657921443,0.50907039,20928.0,20927.0,0.64056774]
[1673657921699,0.69979634,20928.0,20927.0,0.64056774]
[1673657921956,1.17699803,20928.0,20925.0,0.00701055]
[1673657922204,0.28750757,20926.0,20918.0,0.1315297]
[1673657922450,0.28750757,20924.0,20917.0,0.13850965]
[1673657922701,0.28750757,20922.0,20917.0,0.00697995]
[1673657922958,0.76470926,20920.0,20914.0,0.1315297]
[1673657923206,0.28750757,20918.0,20914.0,0.38919853]
[1673657923456,0.19072595,20917.0,20913.0,0.8757858]
[1673657923697,0.60620665,20916.0,20913.0,0.478156]
[1673657923939,0.86456253,20918.0,20913.0,0.478156]
[1673657923940,0.60620665,20915.0,20913.0,0.01726033]
[1673657924185,0.60620665,20914.0,20913.0,0.01726033]
[1673657924460,0.60620665,20914.0,20910.0,0.1315297]
[1673657924461,0.2,20913.0,20910.0,0.1315297]
[1673657924711,0.19072595,20912.0,20910.0,0.6315297]
[1673657924959,0.62355169,20917.0,20911.0,0.3137671]
[1673657924960,0.28825211,20914.0,20911.0,0.3137671]
[1673657925215,0.4718,20918.0,20911.0,0.49546333]
[1673657925467,0.19711681,20917.0,20912.0,0.01226033]
[1673657925708,0.53598597,20916.0,20910.0,0.51045362]
[1673657925954,0.70762595,20915.0,20910.0,0.51045362]
[1673657926197,0.5169,20913.0,20910.0,0.5]
[1673657926456,0.5169,20911.0,20910.0,0.5]
[1673657926700,1.33133912,20911.0,20910.0,0.5]
[1673657926955,0.73361417,20911.0,20910.0,0.5]
[1673657927196,0.93361417,20911.0,20910.0,0.5]
[1673657927444,0.6954953,20911.0,20910.0,0.5]
[1673657927691,0.41671417,20911.0,20910.0,0.5]
[1673657927941,0.73361417,20911.0,20910.0,0.5]
[1673657928187,0.21671417,20911.0,20910.0,0.5]
[1673657928423,0.69391586,20911.0,20910.0,0.5]
[1673657928667,0.79139083,20911.0,20910.0,0.44923023]
[1673657928924,1.91016363,20911.0,20910.0,0.39586629]
[1673657929172,2.28340775,20911.0,20910.0,0.39586629]
[1673657929474,0.2,20910.0,20906.0,0.1315297]
[1673657929729,0.2,20910.0,20904.0,0.13070235]
[1673657929730,0.2695,20907.0,20904.0,0.13070235]
[1673657929982,0.2695,20907.0,20898.0,0.56655885]
[1673657929983,0.34789819,20900.0,20893.0,0.87770787]
[1673657930252,0.5169,20897.0,20889.0,0.13078779]
[1673657930503,1.707342,20898.0,20890.0,0.23451395]
[1673657930504,1.474084,20895.0,20890.0,0.23451395]
[1673657930751,0.73171574,20897.0,20890.0,0.28906038]
[1673657931012,0.2,20896.0,20887.0,0.00665306]
[1673657931263,0.21756805,20894.0,20891.0,0.49531406]
[1673657931510,0.3839893,20898.0,20892.0,1.07720169]
[1673657931756,0.2,20906.0,20897.0,0.6]
[1673657932019,0.29747497,20911.0,20900.0,0.6]
[1673657932020,0.38029546,20909.0,20900.0,0.6]
[1673657932271,0.18364206,20909.0,20902.0,0.478411]
[1673657932517,0.2,20911.0,20903.0,0.3]
[1673657932761,0.2,20913.0,20905.0,0.95669]
[1673657933002,0.89890569,20917.0,20906.0,0.3]
[1673657933251,0.89890569,20917.0,20909.0,0.478256]
[1673657933501,0.89890569,20917.0,20910.0,0.3]
[1673657933747,0.37996843,20921.0,20910.0,0.51622065]
[1673657933993,0.38029546,20922.0,20910.0,0.99342234]
[1673657934240,0.68537351,20921.0,20911.0,0.01622065]
[1673657934498,0.04866194,20910.0,20901.0,0.15]
[1673657934737,0.04866194,20910.0,20895.0,0.478565]
[1673657934738,0.89206041,20909.0,20895.0,0.478565]
[1673657934984,0.37694646,20908.0,20899.0,0.16624065]
[1673657935244,0.7887,20906.0,20897.0,0.25714857]
[1673657935491,0.7887,20906.0,20895.0,0.31624065]
[1673657935492,0.58029546,20905.0,20895.0,0.31624065]
[1673657935751,0.19072595,20904.0,20898.0,0.49342234]
[1673657936014,0.19072595,20903.0,20898.0,0.01622065]
[1673657936255,0.19072595,20902.0,20899.0,0.01622065]
[1673657936505,0.19072595,20906.0,20899.0,0.54289461]
[1673657936752,0.19966194,20910.0,20901.0,0.478436]
[1673657936753,0.04866194,20910.0,20901.0,0.478436]
[1673657936998,0.1673807,20910.0,20902.0,0.3]
[1673657937255,0.04866194,20910.0,20905.0,0.2]
[1673657937514,0.04866194,20910.0,20903.0,0.49460565]
[1673657937765,0.19072595,20909.0,20904.0,0.3]
[1673657938012,0.19072595,20909.0,20903.0,0.31104665]
[1673657938013,0.21466474,20908.0,20903.0,0.31104665]
[1673657938293,0.2,20906.0,20899.0,0.01622065]
[1673657938540,0.19072595,20905.0,20900.0,0.33400986]
[1673657938798,0.19072595,20904.0,20901.0,0.28561823]
[1673657939030,0.4176318,20904.0,20901.0,0.28561823]
[1673657939344,0.2,20902.0,20899.0,0.32362232]
[1673657939529,0.2,20902.0,20896.0,0.01622065]
[1673657939530,0.51176495,20901.0,20897.0,0.33340239]
[1673657939772,0.51176495,20901.0,20894.0,0.478591]
[1673657939773,0.39772495,20900.0,20898.0,0.25252746]
[1673657940015,0.321039,20899.0,20898.0,0.25252746]
[1673657940260,1.18571542,20899.0,20894.0,0.49481165]
[1673657940528,1.18571542,20899.0,20887.0,0.478749]
[1673657940529,1.39182664,20898.0,20887.0,0.478749]
[1673657940773,1.39182664,20898.0,20893.0,0.33021979]
[1673657940774,0.5169,20896.0,20893.0,0.33021979]
[1673657941027,0.19072595,20895.0,20893.0,0.478627]
[1673657941270,0.43376065,20895.0,20891.0,0.47867]
[1673657941516,0.19072595,20894.0,20889.0,0.628717]
[1673657941757,0.10241728,20893.0,20889.0,0.15]
[1673657942002,0.10241728,20893.0,20887.0,0.0237397]
[1673657942003,0.5169,20891.0,20887.0,0.0237397]
[1673657942247,0.04501,20888.0,20884.0,0.29254818]
[1673657942501,0.5169,20886.0,20881.0,0.02353687]
[1673657942746,0.5169,20886.0,20881.0,0.00231622]
[1673657942747,0.5169,20884.0,20881.0,0.00231622]
[1673657942998,0.39772495,20883.0,20882.0,0.28693086]
[1673657943242,0.11902475,20883.0,20882.0,0.28693086]
[1673657943492,0.3097507,20883.0,20882.0,0.01622065]
[1673657943746,0.44006375,20883.0,20877.0,0.49519465]
[1673657943995,0.36405408,20885.0,20875.0,0.479029]
[1673657943996,0.77672205,20882.0,20875.0,0.479029]
[1673657944270,0.2,20879.0,20874.0,0.479053]
[1673657944518,0.39772495,20878.0,20876.0,0.28746434]
[1673657944779,1.26600408,20885.0,20876.0,0.28746434]
[1673657944780,0.36405408,20885.0,20882.0,0.23733392]
[1673657945025,0.36405408,20885.0,20883.0,0.10435142]
[1673657945267,0.7169,20883.0,20882.0,0.10435142]
[1673657945510,0.83673727,20883.0,20877.0,0.50661801]
[1673657945758,0.5169,20881.0,20877.0,0.01140136]
[1673657946000,0.206999,20880.0,20877.0,0.49037836]
[1673657946245,0.2,20883.0,20877.0,0.49037836]
[1673657946246,0.2,20883.0,20878.0,0.01622065]
[1673657946488,0.36405408,20885.0,20879.0,0.957876]
[1673657946757,0.53956392,20883.0,20880.0,0.10435142]
[1673657947010,0.53956392,20883.0,20879.0,0.97409665]
[1673657947263,0.5169,20881.0,20878.0,0.33496587]
[1673657947520,0.53956392,20883.0,20879.0,0.478936]
[1673657947771,0.53956392,20883.0,20880.0,0.58155311]
[1673657948015,0.3789971,20889.0,20881.0,1.257808]
[1673657948261,0.8115121,20886.0,20882.0,0.3]
[1673657948512,0.2946121,20886.0,20884.0,0.478828]
[1673657948756,0.19072595,20890.0,20885.0,0.778805]
[1673657948994,0.42029,20893.0,20886.0,0.09935141]
[1673657948995,0.26211652,20888.0,20886.0,0.09935141]
[1673657949478,0.26211652,20888.0,20881.0,0.628891]
[1673657949479,0.77901652,20888.0,20881.0,0.628891]
[1673657949736,0.5169,20886.0,20882.0,0.55647641]
[1673657949997,0.70762595,20885.0,20882.0,0.3]
[1673657950241,1.037939,20884.0,20882.0,0.3]
[1673657950487,0.65284247,20884.0,20882.0,0.3]
[1673657950729,0.97901652,20884.0,20882.0,0.3]
[1673657950979,0.58315552,20883.0,20882.0,0.3]
[1673657951227,1.78704807,20883.0,20880.0,0.478907]
[1673657951486,0.56191,20881.0,20878.0,0.478968]
[1673657951730,0.5169,20879.0,20876.0,0.479013]
[1673657952021,0.39772495,20878.0,20875.0,0.73718562]
[1673657952264,0.39772495,20878.0,20873.0,0.01622065]
[1673657952265,0.50818778,20876.0,20873.0,0.01622065]
[1673657952528,0.26210511,20879.0,20878.0,0.3082586]
[1673657952772,0.149,20888.0,20878.0,0.957946]
[1673657953021,0.149,20888.0,20882.0,0.31825929]
[1673657953022,0.04501,20888.0,20882.0,0.31825929]
[1673657953268,0.6317522,20891.0,20879.0,0.149]
[1673657953517,0.6317522,20891.0,20878.0,0.49521614]
[1673657953518,0.5169,20882.0,20878.0,0.478973]
[1673657953799,0.39772495,20881.0,20879.0,0.58098088]
[1673657954033,0.25293844,20881.0,20879.0,0.29221239]
[1673657954282,0.25293844,20881.0,20879.0,0.6020097]
[1673657954536,0.5169,20881.0,20879.0,1.09718784]
[1673657954786,0.25293844,20881.0,20879.0,1.04316421]
[1673657955021,0.25293844,20881.0,20879.0,0.77114739]
[1673657955268,0.2,20880.0,20879.0,0.77114739]
[1673657955523,0.11781474,20880.0,20879.0,0.77114739]
[1673657955782,0.37075318,20880.0,20878.0,0.458973]
[1673657956036,0.33161605,20885.0,20878.0,0.458973]
[1673657956268,0.14876,20887.0,20879.0,0.31003794]
[1673657956529,0.14876,20887.0,20879.0,0.32792646]
[1673657956530,0.5169,20886.0,20879.0,0.32792646]
[1673657956775,0.96056439,20886.0,20878.0,0.608973]
[1673657957005,0.44366439,20885.0,20880.0,0.01624314]
[1673657957243,0.37765589,20889.0,20880.0,0.01624314]
[1673657957244,0.19072595,20886.0,20880.0,0.01624314]
[1673657957479,0.14852,20888.0,20880.0,0.01624314]
[1673657957480,0.19072595,20885.0,20880.0,0.01624314]
[1673657957714,0.19072595,20885.0,20878.0,0.608973]
[1673657957960,0.34934171,20884.0,20880.0,0.01624314]
[1673657958222,0.33590415,20884.0,20878.0,0.608973]
[1673657958467,0.42121148,20883.0,20878.0,0.608973]
[1673657958715,0.321039,20882.0,20878.0,0.458973]
[1673657958950,0.65689193,20882.0,20878.0,0.458973]
[1673657959194,0.65689193,20882.0,20875.0,0.00871222]
[1673657959195,0.2,20880.0,20875.0,0.00871222]
[1673657959486,1.0454329,20879.0,20875.0,0.00871222]
[1673657959727,1.40617021,20878.0,20875.0,0.00871222]
[1673657959979,0.5169,20876.0,20872.0,0.00871222]
[1673657960242,1.60617021,20875.0,20872.0,0.00871222]
[1673657960475,0.5169,20873.0,20867.0,0.15]
[1673657960750,0.5169,20871.0,20860.0,0.00201]
[1673657960989,1.36481946,20872.0,20869.0,0.2750556]
[1673657960990,0.56657877,20870.0,20869.0,0.2750556]
[1673657961236,0.11595812,20870.0,20864.0,0.14733]
[1673657961495,0.66464584,20869.0,20864.0,0.15]
[1673657961730,0.18744415,20868.0,20864.0,0.15]
[1673657961968,0.7169,20866.0,20858.0,0.1642743]
[1673657962206,0.77298651,20865.0,20858.0,0.47720169]
[1673657962451,0.19072595,20864.0,20859.0,1.09147599]
[1673657962703,0.19072595,20863.0,20859.0,0.0142743]
[1673657962944,0.19072595,20863.0,20852.0,0.6]
[1673657963210,0.15375419,20869.0,20852.0,0.6]
[1673657963211,0.19072595,20862.0,20860.0,0.47220169]
[1673657963457,0.2,20871.0,20861.0,0.47720169]
[1673657963712,0.2,20880.0,20863.0,2.517268]
[1673657963960,0.14496935,20874.0,20868.0,0.45720169]
[1673657964194,0.11844922,20876.0,20871.0,1.437339]
[1673657964195,0.02,20876.0,20871.0,1.437339]
[1673657964494,0.16282996,20879.0,20872.0,1.1679267]
[1673657964770,0.18971808,20876.0,20875.0,1.437105]
[1673657965002,0.27253195,20876.0,20875.0,1.62783001]
[1673657965258,0.11844922,20876.0,20875.0,1.737105]
[1673657965501,0.11844922,20876.0,20871.0,0.629113]
[1673657965502,0.1836989,20876.0,20871.0,0.629113]
[1673657965755,0.1874451,20875.0,20873.0,0.479067]
[1673657966007,0.2,20873.0,20869.0,0.958344]
[1673657966249,0.7043451,20872.0,20867.0,0.479214]
[1673657966493,0.1874451,20871.0,20868.0,0.479187]
[1673657966967,0.38225652,20872.0,20868.0,0.75863956]
[1673657967209,0.134636,20872.0,20869.0,0.27347325]
[1673657967452,0.16576307,20871.0,20870.0,0.958312]
[1673657967707,0.30231758,20871.0,20870.0,0.958312]
[1673657967940,0.12064602,20871.0,20870.0,0.958312]
[1673657968209,0.01044602,20871.0,20870.0,1.44903701]
[1673657968439,0.17641291,20875.0,20870.0,1.258312]
[1673657968682,0.14299428,20875.0,20871.0,0.49072501]
[1673657968947,0.37980726,20880.0,20872.0,1.8261387]
[1673657969181,0.37980726,20885.0,20873.0,1.20054057]
[1673657969446,0.04761749,20884.0,20876.0,1.91602]
[1673657969688,0.1874451,20883.0,20877.0,0.49072501]
[1673657969945,0.2,20882.0,20878.0,1.14863301]
[1673657970205,0.2,20882.0,20876.0,0.479005]
[1673657970206,1.11588925,20882.0,20877.0,0.19072501]
[1673657970444,0.5169,20880.0,20872.0,0.479106]
[1673657970721,1.51080698,20881.0,20872.0,0.479106]
[1673657970722,0.57217503,20876.0,20872.0,0.76161526]
[1673657970915,0.2,20875.0,20874.0,0.23681399]
[1673657971168,0.2,20875.0,20874.0,0.71587099]
[1673657971169,0.10005826,20875.0,20874.0,0.71587099]
[1673657971412,0.10005826,20875.0,20874.0,0.479057]
[1673657971890,5.826e-05,20875.0,20874.0,0.86978201]
[1673657972152,0.56209798,20881.0,20875.0,0.2]
[1673657972153,0.1874451,20881.0,20875.0,0.2]
[1673657972388,0.03822446,20886.0,20876.0,0.6679267]
[1673657972646,0.04237652,20885.0,20879.0,1.9158]
[1673657972887,0.04237652,20885.0,20880.0,0.49072501]
[1673657973123,0.04664695,20885.0,20881.0,1.62740101]
[1673657973366,0.04776612,20884.0,20882.0,0.3]
[1673657973596,0.3874451,20888.0,20883.0,0.957716]
[1673657973835,0.2,20888.0,20884.0,0.49072501]
[1673657974096,0.57437581,20889.0,20885.0,0.66953201]
[1673657974097,0.37443795,20889.0,20885.0,0.66953201]
[1673657974343,0.14699,20896.0,20886.0,0.49072501]
[1673657974623,0.37420614,20895.0,20887.0,1.14822101]
[1673657974861,0.01132084,20892.0,20888.0,0.685725]
[1673657975109,0.01132084,20892.0,20889.0,1.143157]
[1673657975378,0.01132084,20892.0,20885.0,0.478807]
[1673657975379,0.321039,20891.0,20885.0,0.478807]
[1673657975602,0.77552161,20890.0,20885.0,0.185725]
[1673657975850,0.77552161,20890.0,20885.0,0.664525]
[1673657975851,0.321039,20889.0,20885.0,0.664525]